fUSD/lending_fUSD_20251201
["ID","MTS","AMOUNT","RATE_DAILY","PERIOD"]
[395249601,1764568247926,-500.0,0.00016148,2]
[395249602,1764568247935,-500.0,0.00016148,2]
[395249603,1764568247944,-500.0,0.00016148,2]
[395249604,1764568247953,-500.0,0.00016148,2]
[395249605,1764568247962,-500.0,0.00016148,2]
[395249606,1764568247972,-500.0,0.00016148,2]
[395249607,1764568247981,-500.0,0.00016148,2]
[395249608,1764568247991,-500.0,0.00016148,2]
[395249609,1764568247999,-500.0,0.00016148,2]
[395249610,1764568248009,-500.0,0.00016148,2]
[395249611,1764568248018,-150.0,0.00016148,2]
[395249612,1764568248028,-151.0,0.00016149,2]
[395249613,1764568248037,-578.20924308,0.00016149,2]
[395249614,1764568248046,-3000.0,0.00016149,2]
[395249615,1764568248056,-514.84070869,0.00016149,2]
[395249616,1764568248064,-1500.0,0.00016149,2]
[395249617,1764568248074,-250.0,0.00016149,2]
[395249618,1764568248084,-646.65982734,0.00016149,2]
[395249619,1764568248094,-151.0,0.00016149,2]
[395249620,1764568248103,-1500.0,0.00016149,2]
[395249621,1764568248112,-254.91048614,0.00016149,2]
[395249622,1764568248122,-1500.0,0.00016149,2]
[395249623,1764568248131,-1500.0,0.00016149,2]
[395249624,1764568248140,-1500.0,0.00016149,2]
[395249625,1764568248149,-1500.0,0.00016149,2]
[395249626,1764568248158,-1500.0,0.00016149,2]
[395249627,1764568248168,-1500.0,0.00016149,2]
[395249628,1764568248177,-1500.0,0.00016149,2]
[395249629,1764568248186,-1500.0,0.00016149,2]
[395249630,1764568248196,-1500.0,0.00016149,2]
[395249631,1764568248206,-559.7798745,0.00016149,2]
[395249632,1764568248216,-187.78006525,0.00016149,2]
[395249633,1764568248226,-151.0,0.00016149,2]
[395249634,1764568248237,-10000.0,0.00016149,2]
[395249635,1764568248246,-10000.0,0.00016149,2]
[395249636,1764568248256,-1000.0,0.00016149,2]
[395249637,1764568248266,-10000.0,0.00016149,2]
[395249638,1764568248276,-1000.0,0.00016149,2]
[395249639,1764568248285,-10000.0,0.00016149,2]
[395249640,1764568248294,-10000.0,0.00016149,2]
[395249641,1764568248303,-1000.0,0.00016149,2]
[395249642,1764568248313,-6485.44053371,0.00016149,2]
[395249643,1764568248322,-160.0,0.00016149,2]
[395249644,1764568248332,-10000.0,0.00016149,2]
[395249645,1764568248341,-1000.0,0.00016149,2]
[395249646,1764568248352,-10000.0,0.00016149,2]
[395249647,1764568248362,-1000.0,0.00016149,2]
[395249648,1764568248372,-10000.0,0.00016149,2]
[395249649,1764568248383,-1000.0,0.00016149,2]
[395249650,1764568248393,-1000.0,0.00016149,2]
[395249651,1764568248402,-10000.0,0.00016149,2]
[395249652,1764568248411,-762.94247186,0.00016149,2]
[395249653,1764568248421,-10000.0,0.00016149,2]
[395249654,1764568248431,-10000.0,0.00016149,2]
[395249655,1764568248440,-10000.0,0.00016149,2]
[395249656,1764568248450,-10000.0,0.00016149,2]
[395249657,1764568248459,-10000.0,0.00016149,2]
[395249658,1764568248468,-620.0,0.00016149,2]
[395249659,1764568248478,-3000.0,0.00016149,2]
[395249660,1764568248487,-3000.0,0.00016149,2]
[395249661,1764568248497,-3000.0,0.00016149,2]
[395249662,1764568248506,-250.0,0.00016149,2]
[395249663,1764568248516,-3000.0,0.00016149,2]
[395249664,1764568248525,-250.0,0.00016149,2]
[395249665,1764568248535,-2500.0,0.00016149,2]
[395249666,1764568248544,-3000.0,0.00016149,2]
[395249667,1764568248553,-250.0,0.00016149,2]
[395249668,1764568248562,-1000.0,0.00016149,2]
[395249669,1764568248571,-2500.0,0.00016149,2]
[395249670,1764568248580,-3000.0,0.00016149,2]
[395249671,1764568248589,-250.0,0.00016149,2]
[395249672,1764568248598,-1000.0,0.00016149,2]
[395249673,1764568248607,-2500.0,0.00016149,2]
[395249674,1764568248616,-3000.0,0.00016149,2]
[395249675,1764568248625,-250.0,0.00016149,2]
[395249676,1764568248634,-500.0,0.00016149,2]
[395249677,1764568248643,-2500.0,0.00016149,2]
[395249678,1764568248652,-1000.0,0.00016149,2]
[395249679,1764568248662,-3000.0,0.00016149,2]
[395249680,1764568248672,-250.0,0.00016149,2]
[395249681,1764568248681,-500.0,0.00016149,2]
[395249682,1764568248690,-2500.0,0.00016149,2]
[395249683,1764568248699,-1000.0,0.00016149,2]
[395249684,1764568248708,-3000.0,0.00016149,2]
[395249685,1764568248717,-354.84418245,0.00016149,2]
[395249686,1764568248727,-500.0,0.00016149,2]
[395249687,1764568248737,-560.21662389,0.00016149,2]
[395249688,1764568248746,-1000.0,0.00016149,2]
[395249689,1764568248755,-3000.0,0.00016149,2]
[395249690,1764568248764,-500.0,0.00016149,2]
[395249691,1764568248773,-2500.0,0.00016149,2]
[395249692,1764568248783,-500.0,0.00016149,2]
[395249693,1764568248792,-1000.0,0.00016149,2]
[395249694,1764568248801,-500.0,0.00016149,2]
[395249695,1764568248810,-3000.0,0.00016149,2]
[395249696,1764568248819,-2500.0,0.00016149,2]
[395249697,1764568248831,-500.0,0.00016149,2]
[395249698,1764568248839,-8000.0,0.00016149,2]
[395249699,1764568248848,-1000.0,0.00016149,2]
[395249700,1764568248857,-500.0,0.00016149,2]
[395249701,1764568248865,-3000.0,0.00016149,2]
[395249702,1764568248874,-2500.0,0.00016149,2]
[395249703,1764568248883,-500.0,0.00016149,2]
[395249704,1764568248891,-8000.0,0.00016149,2]
[395249705,1764568248901,-1000.0,0.00016149,2]
[395249706,1764568248912,-500.0,0.00016149,2]
[395249707,1764568248926,-3000.0,0.00016149,2]
[395249708,1764568248935,-2500.0,0.00016149,2]
[395249709,1764568248943,-1000.0,0.00016149,2]
[395249710,1764568248952,-8000.0,0.00016149,2]
[395249711,1764568248962,-3000.0,0.00016149,2]
[395249712,1764568248970,-500.0,0.00016149,2]
[395249713,1764568248980,-2500.0,0.00016149,2]
[395249714,1764568248989,-1328.07662834,0.00016149,2]
[395249715,1764568249001,-1000.0,0.00016149,2]
[395249716,1764568249010,-8000.0,0.00016149,2]
[395249717,1764568249019,-500.0,0.00016149,2]
[395249718,1764568249028,-2500.0,0.00016149,2]
[395249719,1764568249036,-1000.0,0.00016149,2]
[395249720,1764568249045,-8000.0,0.00016149,2]
[395249721,1764568249054,-500.0,0.00016149,2]
[395249722,1764568249064,-2500.0,0.00016149,2]
[395249723,1764568249073,-1000.0,0.00016149,2]
[395249724,1764568249081,-500.0,0.00016149,2]
[395249725,1764568249090,-8000.0,0.00016149,2]
[395249726,1764568249100,-2500.0,0.00016149,2]
[395249727,1764568249109,-151.0,0.00016149,2]
[395249728,1764568249119,-1000.0,0.00016149,2]
[395249729,1764568249128,-500.0,0.00016149,2]
[395249730,1764568249138,-8000.0,0.00016149,2]
[395249731,1764568249155,-2500.0,0.00016149,2]
[395249732,1764568249164,-1000.0,0.00016149,2]
[395249733,1764568249173,-8000.0,0.00016149,2]
[395249734,1764568249182,-500.0,0.00016149,2]
[395249735,1764568249192,-8000.0,0.00016149,2]
[395249736,1764568249201,-500.0,0.00016149,2]
[395249737,1764568249210,-250.39585961,0.00016149,2]
[395249738,1764568249219,-8000.0,0.00016149,2]
[395249739,1764568249228,-8000.0,0.00016149,2]
[395249740,1764568249237,-6411.59586191,0.00016149,2]
[395249741,1764568249246,-248.71531821,0.00016149,2]
[395249742,1764568249255,-1000.0,0.00016149,2]
[395249743,1764568249264,-1000.0,0.00016149,2]
[395249744,1764568249273,-1000.0,0.00016149,2]
[395249745,1764568249283,-1000.0,0.00016149,2]
[395249746,1764568249292,-1000.0,0.00016149,2]
[395249747,1764568249302,-1000.0,0.00016149,2]
[395249748,1764568249311,-187.78006525,0.00016149,2]
[395249749,1764568249320,-1000.0,0.00016149,2]
[395249750,1764568249329,-1000.0,0.00016149,2]
[395249751,1764568249339,-1000.0,0.00016149,2]
[395249752,1764568249348,-1000.0,0.00016149,2]
[395249753,1764568249357,-1000.0,0.00016149,2]
[395249754,1764568249367,-1000.0,0.00016149,2]
[395249755,1764568249377,-1000.0,0.00016149,2]
[395249756,1764568249386,-1000.0,0.00016149,2]
[395249757,1764568249395,-300.0,0.00016149,2]
[395249758,1764568249405,-226.43577512,0.0001615,2]
[395249759,1764568249415,-2092.314224,0.0001615,2]
[395249760,1764568249424,-150.0,0.00016151,2]
[395249761,1764568249433,-150.0,0.00016152,2]
[395249762,1764568249444,-1459.46,0.0001616,2]
[395249763,1764568249453,-2724.15226749,0.0001616,2]
[395249764,1764568249462,-150.0,0.00016162,2]
[395249765,1764568249472,-163.70980013,0.00016163,2]
[395249766,1764568249482,-226.79835367,0.00016163,2]
[395249767,1764568249491,-150.0,0.00016163,2]
[395249768,1764568249500,-698.84,0.00016164,11]
[395249769,1764568249510,-150.0,0.00016164,2]
[395249770,1764568249519,-151.0,0.00016165,2]
[395249771,1764568249529,-150.0,0.0001617,2]
[395249772,1764568249538,-200.0,0.00016174,2]
[395249773,1764568249547,-500.0,0.00016174,2]
[395249774,1764568249557,-200.0,0.00016174,2]
[395249775,1764568249569,-150.0,0.00016174,2]
[395249776,1764568249579,-150.0,0.00016179,2]
[395249777,1764568249589,-163.70980013,0.0001618,2]
[395249778,1764568249600,-226.79835367,0.0001618,2]
[395249779,1764568249611,-150.0,0.00016182,2]
[395249780,1764568249622,-150.0,0.00016187,2]
[395249781,1764568249631,-150.0,0.00016192,2]
[395249782,1764568249640,-180.65552809,0.00016193,2]
[395249783,1764568249649,-335.76083111,0.00016193,2]
[395249784,1764568249659,-500.0,0.00016193,2]
[395249785,1764568249668,-500.0,0.00016193,2]
[395249786,1764568249677,-500.0,0.00016193,2]
[395249787,1764568249686,-417.0,0.00016193,2]
[395249788,1764568249695,-500.0,0.00016193,2]
[395249789,1764568249704,-500.0,0.00016193,2]
[395249790,1764568249712,-3855.0,0.00016193,2]
[395249791,1764568249721,-150.0,0.00016194,2]
[395249792,1764568249731,-163.70980013,0.00016197,2]
[395249793,1764568249740,-226.79835367,0.00016197,2]
[395249794,1764568249749,-150.0,0.00016207,2]
[395249795,1764568249757,-150.0,0.00016211,2]
[395249796,1764568249766,-150.0,0.00016212,2]
[395249797,1764568249775,-1193.0,0.00016213,2]
[395249798,1764568249784,-163.70980013,0.00016214,2]
[395249799,1764568249793,-150.0,0.00016214,2]
[395249800,1764568249802,-226.79835367,0.00016214,2]
[395249801,1764568249811,-150.0,0.00016214,2]
[395249802,1764568249820,-150.0,0.00016219,2]
[395249803,1764568249829,-484.4802032,0.00016219,2]
[395249804,1764568249837,-163.70980013,0.00016231,2]
[395249805,1764568249847,-226.79835367,0.00016231,2]
[395249806,1764568249856,-150.0,0.00016234,2]
[395249807,1764568249865,-150.0,0.00016236,2]
[395249808,1764568249874,-150.0,0.00016237,2]
[395249809,1764568249883,-150.0,0.00016241,2]
[395249810,1764568249893,-150.0,0.00016248,2]
[395249811,1764568249901,-163.70980013,0.00016249,2]
[395249812,1764568249910,-226.79835367,0.00016249,2]
[395249813,1764568249922,-150.0,0.00016258,2]
[395249814,1764568249931,-150.0,0.00016258,2]
[395249815,1764568249940,-150.0,0.00016262,2]
[395249816,1764568249949,-150.0,0.00016262,2]
[395249817,1764568249966,-150.0,0.00016266,2]
[395249818,1764568249979,-163.70980013,0.00016266,2]
[395249819,1764568249988,-226.79835367,0.00016266,2]
[395249820,1764568249997,-150.0,0.00016271,2]
[395249821,1764568250007,-150.0,0.00016274,2]
[395249822,1764568250016,-150.0,0.0001628,2]
[395249823,1764568250026,-163.70980013,0.00016283,2]
[395249824,1764568250035,-226.79835367,0.00016283,2]
[395249825,1764568250045,-150.0,0.00016287,2]
[395249826,1764568250055,-1193.0,0.00016289,2]
[395249827,1764568250064,-150.0,0.0001629,2]
[395249828,1764568250073,-163.70980013,0.000163,2]
[395249829,1764568250082,-226.79835367,0.000163,2]
[395249830,1764568250092,-150.0,0.00016301,2]
[395249831,1764568250102,-150.0,0.00016302,2]
[395249832,1764568250111,-150.0,0.00016307,2]
[395249833,1764568250121,-150.0,0.00016307,2]
[395249834,1764568250131,-150.0,0.00016312,2]
[395249835,1764568250141,-163.70980013,0.00016317,2]
[395249836,1764568250151,-226.79835367,0.00016317,2]
[395249837,1764568250160,-150.0,0.00016317,2]
[395249838,1764568250170,-150.0,0.00016318,2]
[395249839,1764568250180,-150.0,0.00016322,2]
[395249840,1764568250189,-150.0,0.00016324,2]
[395249841,1764568250199,-150.0,0.00016329,2]
[395249842,1764568250209,-500.0,0.0001633,2]
[395249843,1764568250219,-500.0,0.0001633,2]
[395249844,1764568250229,-500.0,0.0001633,2]
[395249845,1764568250238,-417.0,0.0001633,2]
[395249846,1764568250247,-500.0,0.0001633,2]
[395249847,1764568250256,-500.0,0.0001633,2]
[395249848,1764568250266,-3855.0,0.0001633,2]
[395249849,1764568250275,-150.0,0.00016331,2]
[395249850,1764568250284,-163.70980013,0.00016334,2]
[395249851,1764568250294,-226.79835367,0.00016334,2]
[395249852,1764568250304,-150.0,0.00016337,2]
[395249853,1764568250313,-150.0,0.00016346,2]
[395249854,1764568250323,-150.0,0.00016347,2]
[395249855,1764568250333,-604.07312412,0.00016349,2]
[395249856,1764568250343,-163.70980013,0.00016351,2]
[395249857,1764568250352,-226.79835367,0.00016351,2]
[395249858,1764568250362,-150.0,0.0001636,2]
[395249859,1764568250371,-150.0,0.00016362,2]
[395249860,1764568250380,-163.70980013,0.00016369,2]
[395249861,1764568250390,-150.0,0.00016369,2]
[395249862,1764568250399,-226.79835367,0.00016369,2]
[395249863,1764568250409,-150.0,0.00016369,2]
[395249864,1764568250419,-150.0,0.00016374,2]
[395249865,1764568250428,-150.0,0.00016384,2]
[395249866,1764568250438,-163.70980013,0.00016386,2]
[395249867,1764568250449,-226.79835367,0.00016386,2]
[395249868,1764568250458,-150.0,0.00016387,2]
[395249869,1764568250468,-736.0,0.00016387,2]
[395249870,1764568250478,-484.4802032,0.00016389,2]
[395249871,1764568250487,-150.0,0.0001639,2]
[395249872,1764568250497,-150.0,0.00016391,2]
[395249873,1764568250507,-150.0,0.00016395,2]
[395249874,1764568250518,-1000.0,0.00016398,2]
[395249875,1764568250533,-1000.0,0.00016398,2]
[395249876,1764568250543,-938.4223103,0.00016398,2]
[395249877,1764568250767,-1055.00053518,0.00016398,2]
[395249878,1764568250778,-500.70186377,0.00016398,2]
[395249879,1764568250788,-1000.0,0.00016398,2]
[395249880,1764568250798,-500.45943647,0.00016398,2]
[395249881,1764568250807,-1000.0,0.00016398,2]
[395249882,1764568250817,-1000.0,0.00016398,2]
[395249883,1764568250826,-505.70856743,0.00016398,2]
[395249884,1764568250835,-503.91137404,0.00016398,2]
[395249885,1764568250845,-1000.0,0.00016398,2]
[395249886,1764568250854,-500.62734798,0.00016398,2]
[395249887,1764568250863,-160.17885855,0.00016398,2]
[395249888,1764568250873,-1016.50455865,0.00016398,2]
[395249889,1764568250882,-1000.0,0.00016398,2]
[395249890,1764568250891,-1003.03874905,0.00016398,2]
[395249891,1764568250901,-713.79343577,0.00016398,2]
[395249892,1764568250911,-1000.0,0.00016398,2]
[395249893,1764568250925,-1000.0,0.00016398,2]
[395249894,1764568250934,-453.79493009,0.00016398,2]
[395249895,1764568250944,-654.41744648,0.00016398,2]
[395249896,1764568250953,-575.43559045,0.00016398,2]
[395249897,1764568250964,-1000.0,0.00016398,2]
[395249898,1764568250974,-1000.0,0.00016398,2]
[395249899,1764568250983,-1000.0,0.00016398,2]
[395249900,1764568250994,-495.9241853,0.00016398,2]
[395249901,1764568251003,-1000.0,0.00016398,2]
[395249902,1764568251012,-217.00327303,0.00016398,2]
[395249903,1764568251021,-1000.0,0.000164,2]
[395249904,1764568251031,-150.0,0.00016402,2]
[395249905,1764568251040,-163.70980013,0.00016403,2]
[395249906,1764568251050,-226.79835367,0.00016403,2]
[395249907,1764568251059,-150.0,0.00016412,2]
[395249908,1764568251068,-465.96204167,0.00016412,2]
[395249909,1764568251078,-150.0,0.00016413,2]
[395249910,1764568251087,-163.70980013,0.0001642,2]
[395249911,1764568251096,-150.0,0.0001642,2]
[395249912,1764568251106,-226.79835367,0.0001642,2]
[395249913,1764568251115,-150.0,0.0001642,2]
[395249914,1764568251124,-150.0,0.0001642,2]
[395249915,1764568251133,-150.0,0.0001642,2]
[395249916,1764568251143,-150.0,0.00016429,2]
[395249917,1764568251153,-1459.46,0.00016434,2]
[395249918,1764568251164,-150.0,0.00016435,2]
[395249919,1764568251173,-1193.0,0.00016435,2]
[395249920,1764568251182,-150.0,0.00016437,2]
[395249921,1764568251192,-163.70980013,0.00016437,2]
[395249922,1764568251202,-226.79835367,0.00016437,2]
[395249923,1764568251211,-698.84,0.00016438,12]
[395249924,1764568251220,-383.87106597,0.00016438,2]
[395249925,1764568251229,-500.0,0.00016438,2]
[395249926,1764568251240,-150.0,0.00016438,2]
[395249927,1764568251249,-5454.01,0.00016438,2]
[395249928,1764568251258,-800.0,0.00016438,2]
[395249929,1764568251267,-600.0,0.00016438,2]
[395249930,1764568251278,-163.95,0.0001644,2]
[395249931,1764568251288,-151.0,0.00016441,2]
[395249932,1764568251297,-36696.25539655,0.00016444,2]
[395249933,1764568251307,-13970.72633565,0.00016444,2]
[395249934,1764568251317,-150.0,0.0001645,2]
[395249935,1764568251326,-163.70980013,0.00016454,2]
[395249936,1764568251336,-226.79835367,0.00016454,2]
[395249937,1764568251345,-150.0,0.00016457,2]
[395249938,1764568251354,-150.0,0.00016457,2]
[395249939,1764568251364,-150.0,0.00016462,2]
[395249940,1764568251374,-500.0,0.00016467,2]
[395249941,1764568251382,-500.0,0.00016467,2]
[395249942,1764568251392,-500.0,0.00016467,2]
[395249943,1764568251401,-417.0,0.00016467,2]
[395249944,1764568251410,-500.0,0.00016467,2]
[395249945,1764568251420,-500.0,0.00016467,2]
[395249946,1764568251429,-3855.0,0.00016467,2]
[395249947,1764568251439,-150.0,0.00016469,2]
[395249948,1764568251448,-163.70980013,0.00016472,2]
[395249949,1764568251457,-226.79835367,0.00016472,2]
[395249950,1764568251466,-150.0,0.00016472,2]
[395249951,1764568251476,-1033.32870598,0.00016475,2]
[395249952,1764568251486,-150.0,0.00016477,2]
[395249953,1764568251499,-150.0,0.00016479,2]
[395249954,1764568251508,-150.0,0.0001648,2]
[395249955,1764568251518,-175.6,0.00016483,2]
[395249956,1764568251528,-150.0,0.00016485,2]
[395249957,1764568251537,-150.0,0.00016487,2]
[395249958,1764568251546,-1703.44,0.00016488,2]
[395249959,1764568251555,-500.0,0.00016488,2]
[395249960,1764568251566,-163.70980013,0.00016489,2]
[395249961,1764568251577,-226.79835367,0.00016489,2]
[395249962,1764568251586,-150.0,0.00016493,2]
[395249963,1764568251596,-150.0,0.00016501,2]
[395249964,1764568251606,-150.0,0.00016501,2]
[395249965,1764568251615,-823.0,0.00016504,2]
[395249966,1764568251625,-163.70980013,0.00016506,2]
[395249967,1764568251635,-226.79835367,0.00016506,2]
[395249968,1764568251644,-1294.0,0.00016508,2]
[395249969,1764568251653,-250.0,0.00016509,2]
[395249970,1764568251662,-1193.0,0.00016509,2]
[395249971,1764568251673,-150.0,0.00016509,2]
[395249972,1764568251682,-150.0,0.00016512,2]
[395249973,1764568251691,-150.0,0.00016513,2]
[395249974,1764568251700,-500.0,0.00016517,2]
[395249975,1764568251710,-859.47,0.00016517,2]
[395249976,1764568251719,-163.70980013,0.00016523,2]
[395249977,1764568251728,-150.0,0.00016523,2]
[395249978,1764568251738,-226.79835367,0.00016523,2]
[395249979,1764568251748,-150.0,0.00016523,2]
[395249980,1764568251757,-150.0,0.00016533,2]
[395249981,1764568251766,-150.0,0.00016537,2]
[395249982,1764568251776,-150.0,0.00016539,2]
[395249983,1764568251786,-163.70980013,0.0001654,2]
[395249984,1764568251797,-226.79835367,0.0001654,2]
[395249985,1764568251808,-150.0,0.00016541,2]
[395249986,1764568251819,-150.0,0.00016543,2]
[395249987,1764568251830,-150.0,0.00016545,2]
[395249988,1764568251839,-150.0,0.00016548,2]
[395249989,1764568251848,-163.70980013,0.00016557,2]
[395249990,1764568251859,-226.79835367,0.00016557,2]
[395249991,1764568251868,-1193.0,0.00016558,2]
[395249992,1764568251877,-484.4802032,0.0001656,2]
[395249993,1764568251887,-150.0,0.00016562,2]
[395249994,1764568251897,-150.0,0.00016562,2]
[395249995,1764568251907,-150.0,0.00016562,2]
[395249996,1764568251920,-150.0,0.00016567,2]
[395249997,1764568251930,-150.0,0.00016569,2]
[395249998,1764568251940,-150.0,0.00016569,2]
[395249999,1764568251950,-287.21,0.00016571,2]
[395250000,1764568251961,-163.70980013,0.00016575,2]
[395250001,1764568251971,-226.79835367,0.00016575,2]
[395250002,1764568251980,-150.0,0.00016575,2]
[395250003,1764568251990,-500.0,0.00016575,2]
[395250004,1764568252003,-150.0,0.00016587,2]
[395250005,1764568252014,-150.0,0.00016589,2]
[395250006,1764568252025,-163.70980013,0.00016592,2]
[395250007,1764568252035,-226.79835367,0.00016592,2]
[395250008,1764568252045,-150.0,0.00016596,2]
[395250009,1764568252056,-150.0,0.00016599,2]
[395250010,1764568252066,-1577.0,0.000166,2]
[395250011,1764568252076,-150.0,0.00016603,2]
[395250012,1764568252087,-500.0,0.00016604,2]
[395250013,1764568252099,-500.0,0.00016604,2]
[395250014,1764568252110,-500.0,0.00016604,2]
[395250015,1764568252120,-417.0,0.00016604,2]
[395250016,1764568252131,-500.0,0.00016604,2]
[395250017,1764568252141,-500.0,0.00016604,2]
[395250018,1764568252151,-3855.0,0.00016604,2]
[395250019,1764568252160,-163.70980013,0.00016609,2]
[395250020,1764568252170,-226.79835367,0.00016609,2]
[395250021,1764568252181,-150.0,0.00016611,2]
[395250022,1764568252191,-150.0,0.00016612,2]
[395250023,1764568252203,-150.0,0.00016617,2]
[395250024,1764568252214,-150.0,0.00016624,2]
[395250025,1764568252223,-163.70980013,0.00016626,2]
[395250026,1764568252235,-226.79835367,0.00016626,2]
[395250027,1764568252245,-150.0,0.00016626,2]
[395250028,1764568252254,-150.0,0.00016629,2]
[395250029,1764568252264,-3292.0,0.00016629,2]
[395250030,1764568252274,-150.0,0.00016633,2]
[395250031,1764568252283,-150.0,0.00016637,2]
[395250032,1764568252292,-163.70980013,0.00016643,2]
[395250033,1764568252302,-226.79835367,0.00016643,2]
[395250034,1764568252312,-150.0,0.00016647,2]
[395250035,1764568252321,-150.0,0.00016647,2]
[395250036,1764568252330,-500.0,0.00016649,2]
[395250037,1764568252340,-521.87,0.00016649,2]
[395250038,1764568252349,-150.0,0.00016652,2]
[395250039,1764568252359,-150.0,0.00016655,2]
[395250040,1764568252368,-150.0,0.00016658,2]
[395250041,1764568252377,-150.0,0.00016658,2]
[395250042,1764568252387,-5491.65035635,0.0001666,2]
[395250043,1764568252396,-163.70980013,0.0001666,2]
[395250044,1764568252406,-226.79835367,0.0001666,2]
[395250045,1764568252415,-150.0,0.00016662,2]
[395250046,1764568252425,-163.70980013,0.00016677,2]
[395250047,1764568252434,-150.0,0.00016677,2]
[395250048,1764568252444,-226.79835367,0.00016677,2]
[395250049,1764568252453,-150.0,0.00016677,2]
[395250050,1764568252463,-150.0,0.0001668,2]
[395250051,1764568252472,-150.0,0.00016687,2]
[395250052,1764568252482,-150.0,0.00016688,2]
[395250053,1764568252492,-150.0,0.00016691,2]
[395250054,1764568252501,-163.70980013,0.00016695,2]
[395250055,1764568252511,-226.79835367,0.00016695,2]
[395250056,1764568252520,-151.0,0.00016697,2]
[395250057,1764568252530,-3000.0,0.00016697,2]
[395250058,1764568252539,-533.88981491,0.00016697,2]
[395250059,1764568252548,-151.0,0.00016697,2]
[395250060,1764568252557,-194.72792766,0.00016697,2]
[395250061,1764568252566,-642.94,0.00016697,2]
[395250062,1764568252575,-151.0,0.00016697,2]
[395250063,1764568252584,-194.72792766,0.00016697,2]
[395250064,1764568252594,-150.0,0.000167,2]
[395250065,1764568252603,-150.0,0.00016708,2]
[395250066,1764568252612,-1459.46,0.00016708,2]
[395250067,1764568252623,-150.0,0.00016712,2]
[395250068,1764568252634,-163.70980013,0.00016712,2]
[395250069,1764568252644,-226.79835367,0.00016712,2]
[395250070,1764568252654,-163.1222244,0.00016712,2]
[395250071,1764568252663,-698.84,0.00016712,13]
[395250072,1764568252673,-150.0,0.00016712,2]
[395250073,1764568252682,-151.0,0.00016713,2]
[395250074,1764568252691,-150.0,0.00016718,2]
[395250075,1764568252700,-500.0,0.00016721,2]
[395250076,1764568252709,-500.0,0.00016721,2]
[395250077,1764568252719,-500.0,0.00016721,2]
[395250078,1764568252727,-500.0,0.00016721,2]
[395250079,1764568252737,-500.0,0.00016721,2]
[395250080,1764568252750,-150.0,0.00016722,2]
[395250081,1764568252766,-200.0,0.00016722,2]
[395250082,1764568252774,-500.0,0.00016722,2]
[395250083,1764568252783,-200.0,0.00016722,2]
[395250084,1764568252793,-163.70980013,0.00016729,2]
[395250085,1764568252803,-226.79835367,0.00016729,2]
[395250086,1764568252812,-150.0,0.00016729,2]
[395250087,1764568252822,-484.4802032,0.0001673,2]
[395250088,1764568252831,-150.0,0.00016736,2]
[395250089,1764568252840,-150.0,0.00016737,2]
[395250090,1764568252849,-500.0,0.00016741,2]
[395250091,1764568252858,-500.0,0.00016741,2]
[395250092,1764568253216,-500.0,0.00016741,2]
[395250093,1764568253243,-417.0,0.00016741,2]
[395250094,1764568253253,-500.0,0.00016741,2]
[395250095,1764568253263,-500.0,0.00016741,2]
[395250096,1764568253275,-3855.0,0.00016741,2]
[395250097,1764568253286,-150.0,0.00016744,2]
[395250098,1764568253296,-150.0,0.00016744,2]
[395250099,1764568253306,-6911.10840627,0.00016745,2]
[395250100,1764568253316,-1294.0,0.00016746,2]